bitfinex/quotes_SOLUSD_20220105
["timestamp","ask_amount","ask_price","bid_price","bid_amount"]
[1641349781855,34.1685,168.18,168.05,23.4604]
[1641349782754,2.93840681,168.16,168.06,1.3441]
[1641349782954,3.43840681,168.16,168.06,1.3441]
[1641349783254,0.5,168.16,168.07,0.06]
[1641349783455,0.5,168.16,168.07,28.204]
[1641349783754,25.3885,168.18,168.07,28.204]
[1641349783955,25.3885,168.18,168.07,28.964]
[1641349784158,2.71722845,168.17,168.07,28.964]
[1641349784356,3.21722845,168.17,168.07,28.964]
[1641349785859,3.21722845,168.17,168.07,28.464]
[1641349786760,1.3613,168.16,168.07,28.464]
[1641349786958,1.8613,168.16,168.07,29.91250786]
[1641349790263,1.8613,168.16,168.07,30.41250786]
[1641349790463,0.5,168.16,168.07,38.93250786]
[1641349790862,1.8081,168.22,168.07,38.87250786]
[1641349791063,1.8081,168.22,168.08,0.06]
[1641349791265,24.734,168.22,168.08,1.3028]
[1641349791463,2.68679652,168.21,168.09,1.44850786]
[1641349791867,3.44679652,168.21,168.09,1.70850786]
[1641349792267,3.44679652,168.21,168.1,1.44850786]
[1641349792467,24.4784,168.2,168.1,2.69810786]
[1641349792667,24.4784,168.2,168.1,2.95810786]
[1641349792868,25.2384,168.2,168.1,2.95810786]
[1641349794871,24.9784,168.2,168.1,2.95810786]
[1641349795071,24.9784,168.2,168.1,33.96396497]
[1641349795273,24.9784,168.2,168.11,24.149]
[1641349795572,24.9784,168.2,168.11,24.409]
[1641349800476,25.2384,168.2,168.1,1.44850786]
[1641349800680,8.52,168.19,168.07,25.1635]
[1641349800878,23.5237,168.18,168.07,23.9128]
[1641349801077,23.7837,168.18,168.07,23.9128]
[1641349801278,24.2837,168.18,168.07,23.9128]
[1641349801680,1.2806,168.17,168.07,23.9128]
[1641349801877,1.7806,168.17,168.07,23.9128]
[1641349802077,2.0406,168.17,168.07,23.9128]
[1641349802679,2.0406,168.17,168.07,24.1728]
[1641349804284,1.7806,168.17,168.07,24.1728]
[1641349805085,2.0406,168.17,168.07,24.1728]
[1641349805690,1.7806,168.17,168.07,24.1728]
[1641349811319,2.0406,168.17,168.07,24.1728]
[1641349811517,1.2806,168.17,168.08,0.06]
[1641349811719,23.5237,168.18,168.08,0.06]
[1641349811720,23.5237,168.18,168.08,1.50850786]
[1641349811918,23.5237,168.18,168.1,25.20814427]
[1641349812119,1.3476,168.19,168.1,25.46814427]
[1641349812318,1.3476,168.19,168.11,23.3547]
[1641349812521,1.3476,168.19,168.11,29.7737]
[1641349814321,1.3476,168.19,168.11,23.6147]
[1641349815124,1.8476,168.19,168.11,23.6147]
[1641349815326,1.3476,168.19,168.11,23.6147]
[1641349815924,1.8476,168.19,168.11,23.6147]
[1641349816123,1.3476,168.19,168.11,23.6147]
[1641349816321,1.3476,168.19,168.11,24.1147]
[1641349816522,1.3476,168.19,168.11,23.6147]
[1641349816922,1.3476,168.19,168.11,25.06320786]
[1641349817123,1.3476,168.19,168.11,23.6147]
[1641349826731,1.336,168.23,168.11,23.6147]
[1641349826929,1.67717691,168.25,168.12,8.58]
[1641349827131,1.67717691,168.25,168.13,73.6857]
[1641349827332,1.67717691,168.25,168.14,33.22850764]
[1641349827533,1.67717691,168.25,168.15,24.6185]
[1641349827736,1.67717691,168.25,168.16,8.58]
[1641349827933,1.67717691,168.25,168.16,10.52850786]
[1641349828139,1.67717691,168.25,168.16,10.78850786]
[1641349828335,2.94877691,168.28,168.17,1.44850786]
[1641349828532,2.94877691,168.28,168.17,31.5662]
[1641349828732,3.44877691,168.28,168.17,31.5662]
[1641349829134,3.44877691,168.28,168.17,32.8795]
[1641349829336,1.7716,168.28,168.17,32.8795]
[1641349829633,2.0316,168.28,168.17,32.8795]
[1641349829834,1.5316,168.28,168.17,40.0815]
[1641349830234,1.5316,168.28,168.17,41.53000786]
[1641349830439,2.0316,168.28,168.17,41.53000786]
[1641349830737,1.5316,168.28,168.17,41.53000786]
[1641349831235,1.0316,168.28,168.17,41.53000786]
[1641349831435,23.134,168.29,168.17,41.53000786]
[1641349831637,2.97987691,168.31,168.17,41.53000786]
[1641349831836,3.47987691,168.31,168.17,41.53000786]
[1641349832239,2.96566358,168.3,168.17,41.53000786]
[1641349832436,3.46566358,168.3,168.17,41.53000786]
[1641349832836,3.72566358,168.3,168.17,41.53000786]
[1641349833036,24.8702,168.29,168.17,41.53000786]
[1641349833243,25.3702,168.29,168.17,32.8795]
[1641349833437,25.6302,168.29,168.17,32.8795]
[1641349833637,1.2944,168.28,168.17,32.8795]
[1641349834037,2.0544,168.28,168.17,32.8795]
[1641349844846,2.0544,168.28,168.17,31.5662]
[1641349845147,2.0544,168.28,168.17,22.7862]
[1641349847551,2.0544,168.28,168.17,23.0462]
[1641349849878,1.7944,168.28,168.17,23.0462]
[1641349850283,1.7944,168.28,168.18,1.44850786]
[1641349850478,1.7944,168.28,168.18,1.70850786]
[1641349851081,1.7944,168.28,168.18,0.26]
[1641349851283,1.7944,168.28,168.17,23.0462]
[1641349852381,1.7944,168.28,168.17,24.49470786]
[1641349852584,1.7944,168.28,168.17,24.99470786]
[1641349852783,1.7944,168.28,168.17,24.49470786]
[1641349852983,1.7944,168.28,168.17,24.99470786]
[1641349854185,1.7944,168.28,168.17,25.05470786]
[1641349856990,2.0544,168.28,168.17,23.1062]
[1641349858692,2.0544,168.28,168.17,0.06]
[1641349859591,10.5744,168.28,168.17,0.06]
[1641349859993,23.4352,168.27,168.17,0.06]
[1641349860492,24.1952,168.27,168.17,0.06]
[1641349861295,1.2886,168.26,168.17,0.06]
[1641349861506,2.0486,168.26,168.17,0.06]
[1641349864299,2.0486,168.26,168.15,0.06]
[1641349864798,2.0486,168.26,168.16,1.44850786]
[1641349864999,2.0486,168.26,168.16,1.70850786]
[1641349865602,2.0486,168.26,168.17,1.44850786]
[1641349866003,2.0486,168.26,168.17,1.70850786]
[1641349867405,1.5486,168.26,168.17,0.26]
[1641349867602,1.5486,168.26,168.15,0.06]
[1641349868602,1.5486,168.26,168.15,1.50850786]
[1641349868803,2.0486,168.26,168.15,2.26850786]
[1641349870806,2.0486,168.26,168.15,1.76850786]
[1641349871404,1.7886,168.26,168.15,1.76850786]
[1641349871604,1.7886,168.26,168.15,10.78850786]
[1641349871809,1.7886,168.26,168.16,24.709]
[1641349872008,1.7886,168.26,168.16,24.969]
[1641349872207,1.7886,168.26,168.16,25.469]
[1641349872607,1.7886,168.26,168.16,26.97750786]
[1641349872806,0.5,168.26,168.16,26.97750786]
[1641349873007,0.5,168.26,168.16,27.83190786]
[1641349873207,23.9352,168.27,168.16,27.83190786]
[1641349874014,23.9352,168.27,168.16,28.33190786]
[1641349875840,23.9352,168.27,168.16,26.3834]
[1641349876040,24.1952,168.27,168.16,26.3834]
[1641349876641,1.2829,168.26,168.16,26.3834]
[1641349876840,1.7829,168.26,168.16,25.029]
[1641349877241,1.7829,168.26,168.16,26.3542]
[1641349879345,1.7829,168.26,168.16,26.8542]
[1641349879747,1.7829,168.26,168.16,27.80270786]
[1641349885452,1.7829,168.26,168.16,26.3542]
[1641349886955,1.7829,168.26,168.16,27.80270786]
[1641349887357,1.7829,168.26,168.16,28.30270786]
[1641349888456,1.7829,168.26,168.16,26.8542]
[1641349891560,1.7829,168.26,168.16,26.5942]
[1641349891760,1.7829,168.26,168.16,28.04270786]
[1641349892761,1.7829,168.26,168.16,27.54270786]
[1641349892962,1.7829,168.26,168.16,26.3542]
[1641349893363,1.7829,168.26,168.16,26.8542]
[1641349893590,1.7829,168.26,168.16,26.3542]
[1641349893792,1.7829,168.26,168.16,26.8542]
[1641349894095,1.7829,168.26,168.16,26.3542]
[1641349894290,1.7829,168.26,168.16,27.80270786]
[1641349894491,1.7829,168.26,168.16,28.30270786]
[1641349896291,1.7829,168.26,168.16,26.8542]
[1641349896491,1.7829,168.26,168.16,26.3542]
[1641349899800,1.7829,168.26,168.16,27.80270786]
[1641349900201,1.7829,168.26,168.16,26.3542]
[1641349901204,1.7829,168.26,168.16,27.80270786]
[1641349902303,1.7829,168.26,168.16,26.3542]
[1641349902704,1.7829,168.26,168.16,27.80270786]
[1641349902903,1.7829,168.26,168.16,26.3542]
[1641349904002,1.7829,168.26,168.16,27.80270786]
[1641349904403,1.7829,168.26,168.16,26.3542]
[1641349908009,1.7829,168.26,168.16,26.8542]
[1641349913312,0.5,168.26,168.16,26.8542]
[1641349913712,23.9352,168.27,168.17,8.52]
[1641349913913,23.9352,168.27,168.18,0.06]
[1641349914113,23.9352,168.27,168.18,24.2929]
[1641349914312,23.9352,168.27,168.18,25.0529]
[1641349916016,23.9352,168.27,168.18,26.3608]
[1641349917217,1.2605,168.29,168.18,26.3608]
[1641349917419,1.7605,168.29,168.18,26.3608]
[1641349917817,1.2605,168.29,168.18,26.3608]
[1641349918417,23.0592,168.32,168.19,8.52]
[1641349918621,24.4213,168.32,168.21,29.60281437]
[1641349918818,24.9213,168.32,168.22,22.9954]
[1641349919018,24.9213,168.32,168.22,23.2554]
[1641349919318,24.9213,168.32,168.22,23.7554]
[1641349919518,24.9213,168.32,168.22,25.1024]
[1641349919717,2.66397917,168.31,168.22,25.1024]
[1641349919945,3.16397917,168.31,168.22,33.6224]
[1641349920547,2.66397917,168.31,168.22,33.6224]
[1641349920747,3.16397917,168.31,168.22,33.6224]
[1641349921147,2.66397917,168.31,168.22,33.6224]
[1641349921347,1.2834,168.3,168.22,33.6224]
[1641349921847,1.7834,168.3,168.22,33.6224]
[1641349923853,1.2834,168.3,168.22,33.6224]
[1641349926456,1.7834,168.3,168.22,33.6224]
[1641349927056,1.7834,168.3,168.22,10.627]
[1641349927661,1.7834,168.3,168.22,12.07550786]
[1641349930167,1.7834,168.3,168.22,10.627]
[1641349933298,1.2834,168.3,168.22,10.627]
[1641349933600,1.2834,168.3,168.22,12.07550786]
[1641349937308,1.7834,168.3,168.22,12.07550786]
[1641349937705,1.2834,168.3,168.22,12.07550786]
[1641349945316,23.0592,168.32,168.22,12.07550786]
[1641349945516,23.0592,168.32,168.22,12.13550786]
[1641349945815,23.0592,168.32,168.23,24.544]
[1641349946019,1.2602,168.35,168.23,24.804]
[1641349946221,1.2602,168.35,168.24,10.02850786]
[1641349946416,2.56207707,168.34,168.24,10.52850786]
[1641349946616,2.56207707,168.34,168.25,1.44850786]
[1641349946818,2.56207707,168.34,168.25,34.87690786]
[1641349947017,2.56207707,168.34,168.25,35.63690786]
[1641349951818,1.2827,168.33,168.25,35.63690786]
[1641349952220,1.2827,168.33,168.25,35.13690786]
[1641349952420,1.2827,168.33,168.25,33.6884]
[1641349953122,1.7827,168.33,168.25,33.6884]
[1641349953620,1.7827,168.33,168.25,33.4284]
[1641349953822,1.7827,168.33,168.24,1.3341]
[1641349954025,1.7827,168.33,168.22,22.505]
[1641349954224,1.7827,168.33,168.22,23.7871]
[1641349954421,1.7827,168.33,168.22,24.2871]
[1641349955622,1.7827,168.33,168.22,24.5471]
[1641349956824,2.0427,168.33,168.22,24.5471]
[1641349958023,2.0427,168.33,168.22,24.0471]
[1641349958425,2.0427,168.33,168.22,22.505]
[1641349958624,2.0427,168.33,168.18,82.7675]
[1641349958824,2.0427,168.33,168.19,25.6404]
[1641349959424,25.1906,168.33,168.2,26.95474818]
[1641349959827,25.1906,168.33,168.2,28.40325604]
[1641349960027,25.1906,168.33,168.21,24.1317]
[1641349960526,25.1906,168.33,168.21,24.3917]
[1641349960726,25.1906,168.33,168.21,25.6361]
[1641349961424,25.1906,168.33,168.21,26.1361]
[1641349964028,24.9306,168.33,168.21,26.1961]
[1641349964228,24.9306,168.33,168.21,27.64460786]
[1641349965328,25.1906,168.33,168.21,27.64460786]
[1641349965729,24.9306,168.33,168.21,27.64460786]
[1641349967029,25.1906,168.33,168.21,27.64460786]
[1641349970337,24.9306,168.33,168.21,27.64460786]
[1641349970937,24.9306,168.33,168.22,8.52]
[1641349971340,24.9306,168.33,168.23,23.8003]
[1641349971542,24.9306,168.33,168.23,24.1203]
[1641349971739,24.4306,168.33,168.24,1.44850786]
[1641349971940,24.4306,168.33,168.24,1.94850786]
[1641349972240,24.4306,168.33,168.24,2.20850786]
[1641349972464,2.49917143,168.32,168.24,2.20850786]
[1641349973466,24.4306,168.33,168.24,2.20850786]
[1641349975766,2.46099544,168.34,168.24,2.20850786]
[1641349976066,2.46099544,168.34,168.24,10.72850786]
[1641349976265,2.46099544,168.34,168.25,1.44850786]
[1641349976466,2.46099544,168.34,168.25,26.80230786]
[1641349977268,2.46099544,168.34,168.25,26.86230786]
[1641349977469,2.46099544,168.34,168.25,28.20100786]
[1641349982576,2.46099544,168.34,168.25,27.94100786]
[1641349982775,2.46099544,168.34,168.25,26.4925]
[1641349982976,2.96099544,168.34,168.25,26.4925]
[1641349983178,2.96099544,168.34,168.25,25.9925]
[1641349983575,2.96099544,168.34,168.25,26.4925]
[1641349983775,2.46099544,168.34,168.25,26.4925]
[1641349983976,1.3584,168.33,168.25,26.7525]
[1641349986482,1.3584,168.33,168.25,28.20100786]
[1641349986883,1.3584,168.33,168.25,0.06]
[1641349986884,1.8584,168.33,168.25,0.06]
[1641349987084,2.1184,168.33,168.25,0.06]
[1641349987885,1.3584,168.33,168.25,0.06]
[1641349988084,1.8584,168.33,168.25,0.06]
[1641349988289,1.3584,168.33,168.25,1.50850786]
[1641349988485,1.8584,168.33,168.25,1.76850786]
[1641349989485,0.8584,168.33,168.25,2.26850786]
[1641349993895,0.8584,168.33,168.25,2.00850786]
[1641349994999,0.8584,168.33,168.25,2.26850786]
[1641350011641,0.8584,168.33,168.25,2.00850786]
[1641350011844,0.8584,168.33,168.25,1.50850786]
[1641350012644,0.8584,168.33,168.25,29.97388387]
[1641350012844,0.8584,168.33,168.25,30.47388387]
[1641350013045,0.8584,168.33,168.25,30.73388387]
[1641350013244,0.8584,168.33,168.26,23.434]
[1641350013447,0.8584,168.33,168.26,23.934]
[1641350013646,0.8584,168.33,168.26,23.694]
[1641350014450,0.8584,168.33,168.26,24.194]
[1641350015446,0.8584,168.33,168.26,25.64250786]
[1641350016048,24.0621,168.35,168.26,25.70250786]
[1641350016751,25.3363,168.35,168.26,27.01010786]
[1641350018882,24.8363,168.35,168.26,27.01010786]
[1641350021785,24.3363,168.35,168.26,27.01010786]
[1641350024886,24.3363,168.35,168.26,35.53010786]
[1641350035003,24.8363,168.35,168.26,35.53010786]
[1641350037534,24.3363,168.35,168.26,35.53010786]
[1641350046346,24.3363,168.35,168.26,33.5816]
[1641350047747,24.3363,168.35,168.26,34.0816]
[1641350053556,24.3363,168.35,168.26,35.53010786]
[1641350053757,24.3363,168.35,168.26,42.24903229]
[1641350054358,26.72597438,168.35,168.26,42.24903229]
[1641350057763,26.72597438,168.35,168.26,41.98903229]
[1641350057962,26.72597438,168.35,168.26,40.54052443]
[1641350059562,26.72597438,168.35,168.26,40.80052443]
[1641350060164,24.3363,168.35,168.26,40.80052443]
[1641350060363,0.29842773,168.36,168.26,40.80052443]
[1641350060564,0.29842773,168.36,168.26,61.91644728]
[1641350061865,0.29842773,168.36,168.26,70.82704728]
[1641350071902,0.29842773,168.36,168.26,60.46793942]
[1641350072305,0.29842773,168.36,168.26,60.20793942]
[1641350072505,0.29842773,168.36,168.26,32.014]
[1641350072705,0.29842773,168.36,168.26,8.58]
[1641350072905,1.3385,168.35,168.26,8.58]
[1641350073107,1.3385,168.35,168.26,0.06]
[1641350073307,1.8385,168.35,168.26,0.06]
[1641350081344,2.0985,168.35,168.26,0.06]
[1641350081545,1.8385,168.35,168.26,0.06]
[1641350089557,1.3385,168.35,168.26,0.06]
[1641350089760,1.3385,168.35,168.27,8.52]
[1641350089958,1.3385,168.35,168.27,9.02]
[1641350090160,1.3385,168.35,168.27,9.28]
[1641350090358,1.3385,168.35,168.27,10.72850786]
[1641350090559,1.3385,168.35,168.27,11.98410786]
[1641350091170,1.3385,168.35,168.28,22.5864]
[1641350091361,1.3385,168.35,168.29,30.99588694]
[1641350091559,1.3385,168.35,168.29,31.25588694]
[1641350091963,1.3385,168.35,168.29,31.75588694]
[1641350092785,1.3385,168.35,168.29,0.76]
[1641350092987,1.3385,168.35,168.28,31.8664]
[1641350095791,0.29842773,168.36,168.28,31.9264]
[1641350095990,0.29842773,168.36,168.29,1.44850786]
[1641350096192,0.29842773,168.36,168.3,8.52]
[1641350096395,0.29842773,168.36,168.3,9.02]
[1641350096594,0.29842773,168.36,168.3,9.28]
[1641350097191,0.29842773,168.36,168.3,8.78]
[1641350098394,0.29842773,168.36,168.3,9.28]
[1641350099596,0.29842773,168.36,168.3,8.78]
[1641350100195,0.29842773,168.36,168.3,8.52]
[1641350101596,0.29842773,168.36,168.3,8.78]
[1641350114510,0.29842773,168.36,168.3,0.26]
[1641350115012,0.29842773,168.36,168.28,0.26]
[1641350115412,0.29842773,168.36,168.26,8.78]
[1641350117514,1.3561,168.35,168.26,8.78]
[1641350118011,1.8561,168.35,168.26,8.78]
[1641350118212,1.3561,168.35,168.26,8.78]
[1641350118643,0.8561,168.35,168.26,8.78]
[1641350118841,0.8561,168.35,168.26,9.28]
[1641350121446,0.8561,168.35,168.26,10.72850786]
[1641350122146,0.8561,168.35,168.27,1.2971]
[1641350122348,0.8561,168.35,168.28,8.52]
[1641350122547,0.8561,168.35,168.28,8.78]
[1641350122747,0.8561,168.35,168.28,9.28]
[1641350122949,0.8561,168.35,168.28,8.78]
[1641350129954,0.8561,168.35,168.28,10.22850786]
[1641350130555,0.8561,168.35,168.28,9.96850786]
[1641350131855,0.8561,168.35,168.28,10.22850786]
[1641350134463,0.8561,168.35,168.28,10.72850786]
[1641350137564,0.8561,168.35,168.29,22.9133]
[1641350137765,0.29842773,168.36,168.3,30.37399241]
[1641350137965,0.29842773,168.36,168.3,31.13399241]
[1641350138570,0.29842773,168.36,168.3,32.47809241]
[1641350142274,0.29842773,168.36,168.3,2.1041]
[1641350143075,0.29842773,168.36,168.29,22.9133]
[1641350143272,0.29842773,168.36,168.28,9.96850786]
[1641350143273,0.29842773,168.36,168.28,8.52]
[1641350145100,0.29842773,168.36,168.28,8.78]
[1641350146504,0.29842773,168.36,168.29,22.6889]
[1641350147002,0.29842773,168.36,168.29,22.9489]
[1641350147203,0.29842773,168.36,168.29,23.4489]
[1641350148705,0.29842773,168.36,168.29,24.7654]
[1641350148907,0.29842773,168.36,168.3,8.52]
[1641350149107,0.29842773,168.36,168.3,8.78]
[1641350149304,0.29842773,168.36,168.3,9.28]
[1641350155613,0.29842773,168.36,168.3,8.52]
[1641350155813,0.29842773,168.36,168.2,22.6697]
[1641350156014,0.29842773,168.36,168.22,1.2561]
[1641350156215,0.29842773,168.36,168.22,9.7761]
[1641350156717,1.369,168.35,168.23,25.97718579]
[1641350156915,1.869,168.35,168.23,25.97718579]
[1641350157115,2.129,168.35,168.24,24.3211]
[1641350157318,1.869,168.35,168.24,24.3211]
[1641350157516,2.129,168.35,168.24,24.3211]
[1641350157717,2.129,168.35,168.24,25.5626]
[1641350159019,2.129,168.35,168.24,25.8226]
[1641350161431,2.129,168.35,168.24,25.5626]
[1641350162827,2.129,168.35,168.24,24.3211]
[1641350163028,2.129,168.35,168.23,25.97718579]
[1641350164160,2.129,168.35,168.23,26.23718579]
[1641350166061,2.129,168.35,168.24,31.0438]
[1641350166662,2.129,168.35,168.24,32.3815]
[1641350167962,2.129,168.35,168.24,32.6415]
[1641350168663,2.129,168.35,168.24,8.52]
[1641350169967,2.129,168.35,168.24,8.78]
[1641350171470,2.129,168.35,168.25,24.7349]
[1641350171871,2.129,168.35,168.25,24.9949]
[1641350172675,2.129,168.35,168.23,25.97718579]
[1641350173474,2.129,168.35,168.23,49.62368579]
[1641350174075,2.129,168.35,168.23,49.88368579]
[1641350174279,2.129,168.35,168.23,51.15048579]
[1641350175577,2.129,168.35,168.23,25.1733]
[1641350176779,2.129,168.35,168.23,52.23641474]
[1641350179279,1.369,168.35,168.23,52.23641474]
[1641350179682,1.369,168.35,168.24,8.52]
[1641350180080,1.369,168.35,168.24,8.78]
[1641350180282,1.369,168.35,168.25,23.7713]
[1641350180581,1.369,168.35,168.25,24.0313]
[1641350180784,1.869,168.35,168.25,24.0313]
[1641350180982,1.869,168.35,168.26,1.3163]
[1641350181183,1.869,168.35,168.26,1.5763]
[1641350181382,1.869,168.35,168.26,2.0763]
[1641350181779,1.869,168.35,168.26,1.5763]
[1641350184007,1.869,168.35,168.26,2.0763]
[1641350186909,1.869,168.35,168.26,1.3163]
[1641350187110,2.129,168.35,168.26,1.3163]
[1641350188414,2.129,168.35,168.26,1.5763]
[1641350189014,1.869,168.35,168.26,1.5763]
[1641350190416,0.5,168.35,168.26,1.5763]
[1641350190616,32.4519,168.41,168.26,1.5763]
[1641350190617,1.67717691,168.46,168.41,3.20335469]
[1641350190820,1.67717691,168.46,168.41,6.30335469]
[1641350191020,81.0,168.44,168.3,0.31334271]
[1641350191218,89.52,168.44,168.28,23.8358]
[1641350191619,2.3193989,168.43,168.28,23.8358]
[1641350191818,59.51,168.41,168.21,10.38210786]
[1641350192018,59.51,168.39,168.21,18.90210786]
[1641350192218,2.70161625,168.37,168.21,17.4536]
[1641350192419,2.70161625,168.37,168.14,3.0]
[1641350192420,32.0148,168.36,168.14,3.0]
[1641350192619,94.4594,168.36,168.17,8.52]
[1641350192819,94.9594,168.36,168.18,23.23264945]
[1641350193018,96.40790786,168.36,168.18,23.23264945]
[1641350193518,36.89790786,168.36,168.18,23.23264945]
[1641350194119,2.88087263,168.34,168.18,24.68115731]
[1641350194321,23.4437,168.33,168.18,24.68115731]
[1641350194518,23.7037,168.33,168.18,24.68115731]
[1641350194721,24.2037,168.33,168.19,8.52]
[1641350194922,2.96400282,168.31,168.2,23.6879]
[1641350195121,2.96400282,168.31,168.2,26.46380786]
[1641350195320,6.20506039,168.35,168.22,0.06]
[1641350195520,1.3368,168.36,168.23,8.52]
[1641350195722,1.3368,168.36,168.24,22.7437]
[1641350195920,1.3368,168.36,168.25,8.52]
[1641350196121,1.3368,168.36,168.25,8.78]
[1641350196321,3.01059605,168.35,168.25,8.78]
[1641350196521,3.27059605,168.35,168.25,8.78]
[1641350196721,3.77059605,168.35,168.25,8.78]
[1641350196924,3.51059605,168.35,168.25,37.48526727]
[1641350197624,3.01059605,168.35,168.25,37.48526727]
[1641350197822,3.51059605,168.35,168.26,24.6181]
[1641350198026,3.51059605,168.35,168.26,33.3981]
[1641350198425,3.77059605,168.35,168.26,33.3981]
[1641350199826,0.5,168.35,168.26,33.3981]
[1641350200225,1.8514,168.38,168.26,33.3981]
[1641350200825,2.81020883,168.37,168.26,33.3981]
[1641350201026,3.07020883,168.37,168.26,33.3981]
[1641350201226,3.57020883,168.37,168.26,33.3981]
[1641350204230,3.57020883,168.37,168.26,8.78]
[1641350206230,3.57020883,168.37,168.26,8.28]
[1641350211869,3.57020883,168.37,168.26,9.72850786]
[1641350212271,3.57020883,168.37,168.26,8.28]
[1641350213371,3.57020883,168.37,168.26,9.72850786]
[1641350214372,3.57020883,168.37,168.26,10.22850786]
[1641350217276,3.07020883,168.37,168.26,10.22850786]
[1641350220679,3.57020883,168.37,168.26,10.22850786]
[1641350220977,3.57020883,168.37,168.26,9.72850786]
[1641350223981,3.57020883,168.37,168.26,9.46850786]
[1641350224179,3.57020883,168.37,168.26,8.02]
[1641350225179,1.3652,168.36,168.26,8.02]
[1641350225380,1.8652,168.36,168.26,8.02]
[1641350225583,2.1252,168.36,168.26,8.28]
[1641350232689,2.1252,168.36,168.26,8.02]
[1641350232891,2.1252,168.36,168.23,1.3405]
[1641350233088,2.1252,168.36,168.22,32.4026]
[1641350233089,25.4224,168.36,168.22,32.4026]
[1641350233289,25.4224,168.36,168.22,32.6626]
[1641350233693,25.4224,168.36,168.22,33.9927]
[1641350237628,25.4224,168.36,168.22,35.44120786]
[1641350238527,25.4224,168.36,168.22,33.9927]
[1641350238728,25.4224,168.36,168.22,34.4927]
[1641350238930,25.4224,168.36,168.22,34.2327]
[1641350240331,25.4224,168.36,168.22,35.94120786]
[1641350242335,25.1624,168.36,168.22,35.94120786]
[1641350242735,23.2972,168.36,168.22,36.00120786]
[1641350242936,0.5,168.36,168.22,36.00120786]
[1641350243235,2.81020883,168.37,168.23,125.96563243]
[1641350243434,3.31020883,168.37,168.24,31.5619]
[1641350243637,2.81020883,168.37,168.24,33.51040786]
[1641350243843,2.81020883,168.37,168.24,33.77040786]
[1641350244043,2.81020883,168.37,168.25,1.44850786]
[1641350244238,2.81020883,168.37,168.27,30.67998297]
[1641350244436,2.81020883,168.37,168.28,32.3572]
[1641350244936,2.81020883,168.37,168.28,33.1172]
[1641350247037,3.57020883,168.37,168.28,32.6172]
[1641350247239,3.57020883,168.37,168.28,32.3572]
[1641350247637,3.57020883,168.37,168.28,32.6172]
[1641350247841,3.57020883,168.37,168.28,8.52]
[1641350255072,3.31020883,168.37,168.28,8.78]
[1641350255271,2.81020883,168.37,168.28,8.78]
[1641350255671,2.81020883,168.37,168.28,10.22850786]
[1641350256473,3.07020883,168.37,168.28,9.96850786]
[1641350256672,3.57020883,168.37,168.28,9.96850786]
[1641350256875,3.57020883,168.37,168.28,8.52]
[1641350257872,3.57020883,168.37,168.28,8.78]
[1641350258273,3.57020883,168.37,168.28,0.26]
[1641350258673,1.2831,168.36,168.27,8.52]
[1641350258873,1.7831,168.36,168.27,8.78]
[1641350259074,2.0431,168.36,168.27,8.78]
[1641350259674,1.5431,168.36,168.27,8.78]
[1641350260575,1.2831,168.36,168.27,8.78]
[1641350260778,2.81020883,168.37,168.27,8.78]
[1641350260976,2.81020883,168.37,168.28,1.44850786]
[1641350261176,2.81020883,168.37,168.29,8.52]
[1641350261575,2.81020883,168.37,168.29,8.78]
[1641350261776,3.07020883,168.37,168.29,8.78]
[1641350262777,2.81020883,168.37,168.29,8.78]
[1641350262978,3.07020883,168.37,168.29,8.78]
[1641350264781,0.26,168.37,168.3,29.87116898]
[1641350264982,26.7405,168.4,168.31,23.393]
[1641350265182,26.7405,168.4,168.31,31.913]
[1641350265382,26.7405,168.4,168.31,32.173]
[1641350265582,25.9805,168.4,168.31,33.4815]
[1641350265783,2.44769449,168.4,168.31,33.4815]